[Event "*** Qualifier 2: Titled Tuesday 3|2 Blitz"]
[Site "Chess.com"]
[Date "2017.04.11"]
[Round "7"]
[White "saraswathii"]
[Black "sorito"]
[Result "1-0"]
[WhiteElo "2227"]
[BlackElo "2285"]
[TimeControl "180+2"]
[EndTime "14:41:33 PDT"]
[Termination "saraswathii won by resignation"]

1. e4 {[%clk 0:03:02]} 1... d6 {[%clk 0:03:00.1]} 2. d3 {[%clk 0:03:01.6]} 2...
Nf6 {[%clk 0:03:01.7]} 3. Nf3 {[%clk 0:03:02.6]} 3... e5 {[%clk 0:03:02]} 4. g3
{[%clk 0:03:03.7]} 4... g6 {[%clk 0:03:00.6]} 5. Bg2 {[%clk 0:03:04.7]} 5... Bg7
{[%clk 0:03:02.2]} 6. O-O {[%clk 0:03:05.5]} 6... O-O {[%clk 0:03:03.3]} 7. c3
{[%clk 0:02:58.7]} 7... b6 {[%clk 0:03:02.8]} 8. Na3 {[%clk 0:02:57.8]} 8... Re8
{[%clk 0:03:03.8]} 9. Qe2 {[%clk 0:02:56.6]} 9... Ba6 {[%clk 0:03:03.2]} 10. Nh4
{[%clk 0:02:55.2]} 10... Nbd7 {[%clk 0:03:02.8]} 11. f4 {[%clk 0:02:54]} 11...
Nc5 {[%clk 0:03:01.9]} 12. c4 {[%clk 0:02:49.3]} 12... Ne6 {[%clk 0:03:02.4]}
13. Nc2 {[%clk 0:02:49.5]} 13... exf4 {[%clk 0:03:01.9]} 14. gxf4 {[%clk
0:02:49.9]} 14... Nd7 {[%clk 0:03:02.4]} 15. Nf3 {[%clk 0:02:48.2]} 15... Bb7
{[%clk 0:02:57.6]} 16. Qf2 {[%clk 0:02:44.6]} 16... Nec5 {[%clk 0:02:57.4]} 17.
Rd1 {[%clk 0:02:33.5]} 17... Nf6 {[%clk 0:02:48.4]} 18. Rb1 {[%clk 0:02:31.8]}
18... Nfxe4 {[%clk 0:02:48.6]} 19. dxe4 {[%clk 0:02:31.4]} 19... Bxe4 {[%clk
0:02:49.9]} 20. Nfe1 {[%clk 0:02:20.5]} 20... Qd7 {[%clk 0:02:49]} 21. Be3
{[%clk 0:02:12.9]} 21... Qg4 {[%clk 0:02:43.3]} 22. Qg3 {[%clk 0:01:59.6]} 22...
Qe6 {[%clk 0:02:44]} 23. Bd4 {[%clk 0:01:54.5]} 23... Bxg2 {[%clk 0:02:34.9]}
24. Nxg2 {[%clk 0:01:52.7]} 24... Qxc4 {[%clk 0:02:30.1]} 25. Bxg7 {[%clk
0:01:48.1]} 25... Kxg7 {[%clk 0:02:18.2]} 26. Nce3 {[%clk 0:01:35.8]} 26... Qxa2
{[%clk 0:02:08.5]} 27. Nd5 {[%clk 0:01:32.7]} 27... Ne4 {[%clk 0:02:02.2]} 28.
Qd3 {[%clk 0:01:25.1]} 28... c5 {[%clk 0:01:52.8]} 29. Nc7 {[%clk 0:01:19.1]}
29... f5 {[%clk 0:01:44.7]} 30. Nxa8 {[%clk 0:01:18.3]} 30... Rxa8 {[%clk
0:01:45.6]} 31. Ne3 {[%clk 0:01:17.6]} 31... Qa4 {[%clk 0:01:37.7]} 32. b4
{[%clk 0:01:02]} 32... Re8 {[%clk 0:01:35.8]} 33. Nd5 {[%clk 0:00:51.5]} 33...
Qd7 {[%clk 0:01:21.7]} 34. bxc5 {[%clk 0:00:51.2]} 34... dxc5 {[%clk 0:01:20.5]}
35. Ra1 {[%clk 0:00:46.5]} 35... b5 {[%clk 0:01:09.7]} 36. Qa3 {[%clk
0:00:42.9]} 36... b4 {[%clk 0:00:50.9]} 37. Qb2+ {[%clk 0:00:39.4]} 37... Kh6
{[%clk 0:00:50.2]} 38. Nf6 {[%clk 0:00:37.1]} 38... Qg7 {[%clk 0:00:42.7]} 39.
Ra6 {[%clk 0:00:34.3]} 39... Nxf6 {[%clk 0:00:30]} 40. Qxf6 {[%clk 0:00:29.4]}
40... Qxf6 {[%clk 0:00:21]} 41. Rxf6 {[%clk 0:00:31.3]} 41... Ra8 {[%clk
0:00:20.9]} 42. Rc6 {[%clk 0:00:30.7]} 42... a5 {[%clk 0:00:21.9]} 43. Rxc5
{[%clk 0:00:31.6]} 43... a4 {[%clk 0:00:23.3]} 44. Ra1 {[%clk 0:00:31.5]} 44...
b3 {[%clk 0:00:24.7]} 45. Rb5 {[%clk 0:00:32]} 45... Kh5 {[%clk 0:00:25.8]} 46.
Rxb3 {[%clk 0:00:31.6]} 46... Kg4 {[%clk 0:00:23.6]} 47. Rba3 {[%clk 0:00:24.3]}
47... Rb8 {[%clk 0:00:22]} 48. Rxa4 {[%clk 0:00:21.1]} 48... Rb2 {[%clk
0:00:23.1]} 49. Rf1 {[%clk 0:00:20.1]} 49... h6 {[%clk 0:00:24.2]} 50. Rf2
{[%clk 0:00:20.9]} 50... Rb3 {[%clk 0:00:23.7]} 51. Kg2 {[%clk 0:00:22.1]} 51...
g5 {[%clk 0:00:25.1]} 52. fxg5+ {[%clk 0:00:22.7]} 52... Kxg5 {[%clk 0:00:25.9]}
53. Raf4 {[%clk 0:00:23.5]} 53... Rb5 {[%clk 0:00:26.7]} 54. Kg3 {[%clk
0:00:23.9]} 54... h5 {[%clk 0:00:27.9]} 55. h4+ {[%clk 0:00:24.5]} 55... Kg6
{[%clk 0:00:29.3]} 56. Rd4 {[%clk 0:00:25.6]} 56... Rb3+ {[%clk 0:00:30.6]} 57.
Rf3 {[%clk 0:00:26.2]} 57... Rb6 {[%clk 0:00:32.1]} 58. Rd5 {[%clk 0:00:26.1]}
58... Rf6 {[%clk 0:00:31.6]} 59. Kf4 {[%clk 0:00:27.1]} 59... Rf8 {[%clk
0:00:32.2]} 60. Rd6+ {[%clk 0:00:26.2]} 60... Kg7 {[%clk 0:00:33]} 61. Kg5
{[%clk 0:00:26.8]} 1-0

[Event "*** Qualifier 2: Titled Tuesday 3|2 Blitz"]
[Site "Chess.com"]
[Date "2017.04.11"]
[Round "7"]
[White "ShimanovAlex"]
[Black "Witik"]
[Result "0-1"]
[WhiteElo "2601"]
[BlackElo "2526"]
[TimeControl "180+2"]
[EndTime "14:41:43 PDT"]
[Termination "Witik won by resignation"]

1. d4 {[%clk 0:02:56.4]} 1... Nf6 {[%clk 0:03:00.7]} 2. Bf4 {[%clk 0:02:57]}
2... c5 {[%clk 0:03:00.8]} 3. d5 {[%clk 0:02:56.9]} 3... Qb6 {[%clk 0:03:01.1]}
4. Nc3 {[%clk 0:02:58.1]} 4... Qxb2 {[%clk 0:02:56.3]} 5. Bd2 {[%clk 0:02:59.1]}
5... Qb6 {[%clk 0:02:56.2]} 6. e4 {[%clk 0:03:00.1]} 6... d6 {[%clk 0:02:50.8]}
7. f4 {[%clk 0:03:00.9]} 7... g6 {[%clk 0:02:46]} 8. Nf3 {[%clk 0:03:01.6]} 8...
Bg7 {[%clk 0:02:46.7]} 9. Bb5+ {[%clk 0:02:59.3]} 9... Nfd7 {[%clk 0:02:44.5]}
10. a4 {[%clk 0:02:56.7]} 10... Qd8 {[%clk 0:02:44.5]} 11. O-O {[%clk
0:02:55.7]} 11... O-O {[%clk 0:02:45.4]} 12. Re1 {[%clk 0:02:55.4]} 12... Na6
{[%clk 0:02:36]} 13. h4 {[%clk 0:02:45.8]} 13... Nf6 {[%clk 0:02:33.1]} 14. Bc4
{[%clk 0:02:41.5]} 14... Nb4 {[%clk 0:02:30.7]} 15. Na2 {[%clk 0:02:35.6]} 15...
a5 {[%clk 0:02:23.9]} 16. Nc3 {[%clk 0:02:32.1]} 16... e6 {[%clk 0:02:19.6]} 17.
dxe6 {[%clk 0:01:51.8]} 17... fxe6 {[%clk 0:02:16.2]} 18. e5 {[%clk 0:01:42.5]}
18... dxe5 {[%clk 0:02:17.5]} 19. Nxe5 {[%clk 0:01:41.9]} 19... Kh8 {[%clk
0:02:11.7]} 20. Nb5 {[%clk 0:01:37.4]} 20... Nbd5 {[%clk 0:02:09.9]} 21. Ra3
{[%clk 0:01:31.5]} 21... Bd7 {[%clk 0:02:03.9]} 22. g4 {[%clk 0:01:25.7]} 22...
Bc6 {[%clk 0:01:58.8]} 23. Rh3 {[%clk 0:01:24.5]} 23... Kg8 {[%clk 0:01:32.6]}
24. h5 {[%clk 0:01:24.7]} 24... gxh5 {[%clk 0:01:33.8]} 25. g5 {[%clk
0:01:25.5]} 25... Ng4 {[%clk 0:01:32.7]} 26. Nxg4 {[%clk 0:01:25.5]} 26... hxg4
{[%clk 0:01:33.3]} 27. Qxg4 {[%clk 0:01:27.1]} 27... Qd7 {[%clk 0:01:21.9]} 28.
Bd3 {[%clk 0:01:26.7]} 28... Rf5 {[%clk 0:01:15.5]} 29. Qh5 {[%clk 0:01:00]}
29... Nxf4 {[%clk 0:01:10.3]} 30. Bxf4 {[%clk 0:00:58]} 30... Rxf4 {[%clk
0:01:09]} 31. Qxh7+ {[%clk 0:00:55.8]} 31... Kf8 {[%clk 0:01:09.9]} 32. Rf1
{[%clk 0:00:33.6]} 32... Rxf1+ {[%clk 0:01:04.7]} 33. Kxf1 {[%clk 0:00:35]}
33... Qf7+ {[%clk 0:01:01.7]} 34. Ke1 {[%clk 0:00:30.9]} 34... Rd8 {[%clk
0:00:59]} 35. Rh2 {[%clk 0:00:29.8]} 35... Bf3 {[%clk 0:00:42.3]} 36. Rf2 {[%clk
0:00:28.3]} 36... e5 {[%clk 0:00:40]} 37. g6 {[%clk 0:00:10.9]} 37... Qf4 {[%clk
0:00:36.7]} 38. Rxf3 {[%clk 0:00:08.5]} 38... Qxf3 {[%clk 0:00:37.6]} 39. Qh4
{[%clk 0:00:10.1]} 39... Rd7 {[%clk 0:00:32.9]} 40. Qc4 {[%clk 0:00:09.7]} 40...
Ke7 {[%clk 0:00:27.4]} 41. Qxc5+ {[%clk 0:00:10.5]} 41... Kf6 {[%clk 0:00:28.7]}
42. Qb6+ {[%clk 0:00:10.7]} 42... Kg5 {[%clk 0:00:27]} 43. Nc3 {[%clk
0:00:11.4]} 43... Rd4 {[%clk 0:00:21.3]} 44. Ne2 {[%clk 0:00:08.4]} 44... e4
{[%clk 0:00:18.6]} 45. Nxd4 {[%clk 0:00:08.9]} 45... Qe3+ {[%clk 0:00:19.3]} 46.
Kd1 {[%clk 0:00:09.8]} 46... Bxd4 {[%clk 0:00:19.8]} 47. Qxa5+ {[%clk
0:00:10.4]} 47... Kxg6 {[%clk 0:00:18.1]} 48. Bxe4+ {[%clk 0:00:04.4]} 48...
Qxe4 {[%clk 0:00:19.2]} 49. Qb5 {[%clk 0:00:05.7]} 49... Bc3 {[%clk 0:00:16.5]}
50. Qb6+ {[%clk 0:00:07.1]} 50... Kf5 {[%clk 0:00:14.3]} 51. Qb5+ {[%clk
0:00:08.1]} 51... Kg4 {[%clk 0:00:13.4]} 52. Qd7+ {[%clk 0:00:08]} 52... Kf3
{[%clk 0:00:12.9]} 53. Qf7+ {[%clk 0:00:08.7]} 53... Ke3 {[%clk 0:00:12.4]} 54.
Kc1 {[%clk 0:00:08.9]} 54... Qd4 {[%clk 0:00:11.9]} 55. Qxb7 {[%clk 0:00:06.4]}
55... Qd2+ {[%clk 0:00:11.9]} 56. Kb1 {[%clk 0:00:07.9]} 56... Qe1+ {[%clk
0:00:13.3]} 0-1

[Event "*** Qualifier 2: Titled Tuesday 3|2 Blitz"]
[Site "Chess.com"]
[Date "2017.04.11"]
[Round "8"]
[White "andreimacovei2000"]
[Black "Rating-Schmating"]
[Result "1-0"]
[WhiteElo "2398"]
[BlackElo "2250"]
[TimeControl "180+2"]
[EndTime "14:47:50 PDT"]
[Termination "andreimacovei2000 won by checkmate"]

1. e4 {[%clk 0:03:02]} 1... e6 {[%clk 0:03:00.6]} 2. d4 {[%clk 0:03:02.5]} 2...
d5 {[%clk 0:03:01.5]} 3. Nc3 {[%clk 0:03:04]} 3... Bb4 {[%clk 0:03:02.2]} 4. e5
{[%clk 0:03:04.8]} 4... c5 {[%clk 0:03:03.2]} 5. a3 {[%clk 0:03:05.6]} 5...
Bxc3+ {[%clk 0:03:02.5]} 6. bxc3 {[%clk 0:03:07.5]} 6... Qc7 {[%clk 0:03:03.4]}
7. Nf3 {[%clk 0:02:57.7]} 7... Nc6 {[%clk 0:03:03.6]} 8. a4 {[%clk 0:02:57.7]}
8... Nge7 {[%clk 0:03:02.8]} 9. Ba3 {[%clk 0:02:52.6]} 9... b6 {[%clk
0:03:03.9]} 10. Be2 {[%clk 0:02:51]} 10... Na5 {[%clk 0:02:59.9]} 11. O-O {[%clk
0:02:50.1]} 11... O-O {[%clk 0:02:58.9]} 12. Bd3 {[%clk 0:02:49.6]} 12... Nc4
{[%clk 0:02:53.5]} 13. Bxh7+ {[%clk 0:02:46]} 13... Kxh7 {[%clk 0:02:53.8]} 14.
Ng5+ {[%clk 0:02:47.4]} 14... Kh6 {[%clk 0:02:52.5]} 15. Bc1 {[%clk 0:02:40.5]}
15... Nf5 {[%clk 0:02:43.5]} 16. Nxe6+ {[%clk 0:02:36.9]} 16... Kg6 {[%clk
0:02:41.7]} 17. Nxc7 {[%clk 0:02:37.7]} 17... Rb8 {[%clk 0:02:42.9]} 18. Nxd5
{[%clk 0:02:38.2]} 18... Ba6 {[%clk 0:02:42.7]} 19. Qg4+ {[%clk 0:02:38.3]}
19... Kh7 {[%clk 0:02:43.9]} 20. Qxf5+ {[%clk 0:02:39.2]} 20... Kg8 {[%clk
0:02:45.2]} 21. Ne7+ {[%clk 0:02:39.5]} 21... Kh8 {[%clk 0:02:46.2]} 22. Qh5#
{[%clk 0:02:41]} 1-0

[Event "*** Qualifier 2: Titled Tuesday 3|2 Blitz"]
[Site "Chess.com"]
[Date "2017.04.11"]
[Round "8"]
[White "jeaston1"]
[Black "jcgs1030"]
[Result "0-1"]
[WhiteElo "2088"]
[BlackElo "2290"]
[TimeControl "180+2"]
[EndTime "14:49:42 PDT"]
[Termination "jcgs1030 won by resignation"]

1. d4 {[%clk 0:03:02]} 1... Nf6 {[%clk 0:02:59.5]} 2. c4 {[%clk 0:03:03.5]} 2...
c5 {[%clk 0:02:56.3]} 3. d5 {[%clk 0:03:04.1]} 3... e6 {[%clk 0:02:57.5]} 4. Nc3
{[%clk 0:03:04.8]} 4... exd5 {[%clk 0:02:59.4]} 5. cxd5 {[%clk 0:03:05.8]} 5...
d6 {[%clk 0:03:01.2]} 6. e4 {[%clk 0:03:07.2]} 6... g6 {[%clk 0:03:01.9]} 7. f4
{[%clk 0:03:08.8]} 7... Bg7 {[%clk 0:03:03.1]} 8. Bb5+ {[%clk 0:03:10.4]} 8...
Nfd7 {[%clk 0:03:03.2]} 9. Nf3 {[%clk 0:03:11.8]} 9... O-O {[%clk 0:03:04.4]}
10. O-O {[%clk 0:03:13.4]} 10... Na6 {[%clk 0:03:03.2]} 11. Kh1 {[%clk
0:03:13.5]} 11... Nc7 {[%clk 0:03:02.3]} 12. Bd3 {[%clk 0:03:14.6]} 12... Re8
{[%clk 0:02:59]} 13. f5 {[%clk 0:03:14.4]} 13... b6 {[%clk 0:02:57.1]} 14. Bg5
{[%clk 0:03:12.5]} 14... Bf6 {[%clk 0:02:56.9]} 15. Bxf6 {[%clk 0:03:12]} 15...
Qxf6 {[%clk 0:02:57.7]} 16. fxg6 {[%clk 0:03:12.7]} 16... hxg6 {[%clk
0:02:58.3]} 17. Qd2 {[%clk 0:03:02.6]} 17... Qg7 {[%clk 0:02:51.3]} 18. Ng5
{[%clk 0:03:02.8]} 18... Ne5 {[%clk 0:02:51.9]} 19. Bb5 {[%clk 0:03:01.6]} 19...
Re7 {[%clk 0:02:50.9]} 20. Bc6 {[%clk 0:02:55.9]} 20... Rb8 {[%clk 0:02:51.6]}
21. Rf4 {[%clk 0:02:46.4]} 21... b5 {[%clk 0:02:51.9]} 22. Raf1 {[%clk
0:02:43.1]} 22... b4 {[%clk 0:02:51.6]} 23. Na4 {[%clk 0:02:42.7]} 23... Ba6
{[%clk 0:02:51.1]} 24. Rc1 {[%clk 0:02:35.4]} 24... Nd3 {[%clk 0:02:48.2]} 25.
Rf3 {[%clk 0:01:55.9]} 25... Nxc1 {[%clk 0:02:42.3]} 26. Qxc1 {[%clk 0:01:56.8]}
26... Bb5 {[%clk 0:02:43.4]} 27. Nxc5 {[%clk 0:01:56.3]} 27... Bxc6 {[%clk
0:02:41]} 0-1

[Event "*** Qualifier 2: Titled Tuesday 3|2 Blitz"]
[Site "Chess.com"]
[Date "2017.04.11"]
[Round "8"]
[White "GianmarcoVaR"]
[Black "bilelou"]
[Result "1-0"]
[WhiteElo "2487"]
[BlackElo "2349"]
[TimeControl "180+2"]
[EndTime "14:51:17 PDT"]
[Termination "GianmarcoVaR won by resignation"]

1. d4 {[%clk 0:02:51.5]} 1... d5 {[%clk 0:03:00.5]} 2. Nf3 {[%clk 0:02:52.9]}
2... e6 {[%clk 0:03:02.4]} 3. Bf4 {[%clk 0:02:53.9]} 3... Nf6 {[%clk 0:03:02.7]}
4. e3 {[%clk 0:02:55]} 4... c5 {[%clk 0:02:46.1]} 5. c3 {[%clk 0:02:56]} 5...
Nc6 {[%clk 0:02:47.5]} 6. Nbd2 {[%clk 0:02:56.5]} 6... Bd6 {[%clk 0:02:49.1]} 7.
Bg3 {[%clk 0:02:56.4]} 7... b6 {[%clk 0:02:50.7]} 8. Bb5 {[%clk 0:02:43]} 8...
Bb7 {[%clk 0:02:36.2]} 9. Qa4 {[%clk 0:02:42.6]} 9... Qc7 {[%clk 0:02:04.4]} 10.
Bxd6 {[%clk 0:02:39.2]} 10... Qxd6 {[%clk 0:02:04.1]} 11. Ne5 {[%clk 0:02:40.3]}
11... Rc8 {[%clk 0:02:04.4]} 12. Qxa7 {[%clk 0:02:41.1]} 12... Rc7 {[%clk
0:01:50.7]} 13. Qxb6 {[%clk 0:02:30.7]} 13... cxd4 {[%clk 0:01:45.7]} 14. exd4
{[%clk 0:02:31.4]} 14... O-O {[%clk 0:01:46]} 15. Ndf3 {[%clk 0:02:29.3]} 15...
Ne4 {[%clk 0:01:44.4]} 16. Bd3 {[%clk 0:02:01.3]} 16... f6 {[%clk 0:01:43.3]}
17. Nxc6 {[%clk 0:01:59.1]} 17... Bxc6 {[%clk 0:01:44.5]} 18. Qb4 {[%clk
0:01:51.7]} 18... Rb7 {[%clk 0:01:40.6]} 19. Qxd6 {[%clk 0:01:52.2]} 19... Nxd6
{[%clk 0:01:42.2]} 20. b3 {[%clk 0:01:51.5]} 20... Re8 {[%clk 0:01:43.3]} 21.
Kd2 {[%clk 0:01:36.4]} 21... e5 {[%clk 0:01:44]} 22. Ne1 {[%clk 0:01:35.8]}
22... e4 {[%clk 0:01:44.9]} 23. Be2 {[%clk 0:01:35.7]} 23... f5 {[%clk
0:01:46.4]} 24. g3 {[%clk 0:01:34.7]} 24... Rc7 {[%clk 0:01:44.8]} 25. h4 {[%clk
0:01:31.9]} 25... Bd7 {[%clk 0:01:29.3]} 26. Ng2 {[%clk 0:01:32.4]} 26... Rec8
{[%clk 0:01:28.3]} 27. Rhc1 {[%clk 0:01:31.2]} 27... e3+ {[%clk 0:01:29.5]} 28.
Nxe3 {[%clk 0:01:32.1]} 28... Ne4+ {[%clk 0:01:30.8]} 29. Ke1 {[%clk 0:01:33.3]}
29... Nxc3 {[%clk 0:01:31]} 30. Bf3 {[%clk 0:01:31.3]} 30... Be6 {[%clk
0:01:30.5]} 31. Rc2 {[%clk 0:01:25.7]} 1-0

[Event "*** Qualifier 2: Titled Tuesday 3|2 Blitz"]
[Site "Chess.com"]
[Date "2017.04.11"]
[Round "8"]
[White "rpragchess"]
[Black "MorpheusPro"]
[Result "1-0"]
[WhiteElo "2200"]
[BlackElo "2158"]
[TimeControl "180+2"]
[EndTime "14:51:28 PDT"]
[Termination "rpragchess won by checkmate"]

1. e4 {[%clk 0:03:02]} 1... c6 {[%clk 0:02:59]} 2. c4 {[%clk 0:02:59.2]} 2... d5
{[%clk 0:02:59.4]} 3. exd5 {[%clk 0:02:56.7]} 3... cxd5 {[%clk 0:03:00.2]} 4. d4
{[%clk 0:02:56.7]} 4... Nf6 {[%clk 0:02:58.5]} 5. Nc3 {[%clk 0:02:56.8]} 5...
Nc6 {[%clk 0:02:57.8]} 6. Nf3 {[%clk 0:02:57]} 6... Bg4 {[%clk 0:02:57.6]} 7.
cxd5 {[%clk 0:02:36.8]} 7... Nxd5 {[%clk 0:02:42.3]} 8. Qb3 {[%clk 0:02:38.1]}
8... Bxf3 {[%clk 0:02:17.8]} 9. gxf3 {[%clk 0:02:36.7]} 9... e6 {[%clk
0:01:43.3]} 10. Qxb7 {[%clk 0:02:36.9]} 10... Nxd4 {[%clk 0:01:32.7]} 11. Bb5+
{[%clk 0:02:37]} 11... Nxb5 {[%clk 0:01:30.6]} 12. Qc6+ {[%clk 0:02:38.1]} 12...
Ke7 {[%clk 0:01:24.6]} 13. Qb7+ {[%clk 0:02:39.5]} 13... Nbc7 {[%clk 0:01:13.9]}
14. Nxd5+ {[%clk 0:02:32]} 14... exd5 {[%clk 0:01:12.7]} 15. Bf4 {[%clk
0:02:33.4]} 15... Kd7 {[%clk 0:01:05.6]} 16. Bxc7 {[%clk 0:02:28.7]} 16... Qxc7
{[%clk 0:01:03.6]} 17. Qxd5+ {[%clk 0:02:24.1]} 17... Bd6 {[%clk 0:00:39.4]} 18.
Qxf7+ {[%clk 0:02:24.5]} 18... Kc8 {[%clk 0:00:36.6]} 19. Qf5+ {[%clk 0:02:24]}
19... Kb8 {[%clk 0:00:33.7]} 20. O-O {[%clk 0:02:23.4]} 20... Bxh2+ {[%clk
0:00:32.1]} 21. Kg2 {[%clk 0:02:24.2]} 21... Qe5 {[%clk 0:00:24.1]} 22. Qd7
{[%clk 0:02:15.6]} 22... Bf4 {[%clk 0:00:22.9]} 23. Rfd1 {[%clk 0:02:15.9]}
23... Qg5+ {[%clk 0:00:19.1]} 24. Kf1 {[%clk 0:02:16.3]} 24... Rf8 {[%clk
0:00:15]} 25. Rd5 {[%clk 0:02:16.9]} 25... Be5 {[%clk 0:00:13.3]} 26. Rb5#
{[%clk 0:02:17.4]} 1-0

[Event "*** Qualifier 2: Titled Tuesday 3|2 Blitz"]
[Site "Chess.com"]
[Date "2017.04.11"]
[Round "8"]
[White "chessking2151"]
[Black "chesstatour"]
[Result "1-0"]
[WhiteElo "2326"]
[BlackElo "1945"]
[TimeControl "180+2"]
[EndTime "14:51:31 PDT"]
[Termination "chessking2151 won on time"]

1. e4 {[%clk 0:03:02]} 1... c6 {[%clk 0:02:58.1]} 2. d4 {[%clk 0:03:00.3]} 2...
d5 {[%clk 0:02:55.9]} 3. e5 {[%clk 0:03:01.7]} 3... Bf5 {[%clk 0:02:56]} 4. Nf3
{[%clk 0:03:00.6]} 4... e6 {[%clk 0:02:57.2]} 5. c3 {[%clk 0:02:58.6]} 5... c5
{[%clk 0:02:57.7]} 6. Nbd2 {[%clk 0:02:57.9]} 6... Qb6 {[%clk 0:02:57.9]} 7. a4
{[%clk 0:02:56]} 7... Nc6 {[%clk 0:02:55]} 8. Bb5 {[%clk 0:02:54.1]} 8... a6
{[%clk 0:02:49]} 9. Bxc6+ {[%clk 0:02:55.1]} 9... bxc6 {[%clk 0:02:43.5]} 10.
O-O {[%clk 0:02:48.6]} 10... c4 {[%clk 0:02:18.7]} 11. Ne1 {[%clk 0:02:42.1]}
11... Ne7 {[%clk 0:02:10.5]} 12. b4 {[%clk 0:02:42.4]} 12... cxb3 {[%clk
0:02:07.6]} 13. Nxb3 {[%clk 0:02:43.2]} 13... Ng6 {[%clk 0:02:01.6]} 14. Ba3
{[%clk 0:02:43.5]} 14... Bxa3 {[%clk 0:01:45.3]} 15. Rxa3 {[%clk 0:02:45.4]}
15... h5 {[%clk 0:01:27.3]} 16. Nc5 {[%clk 0:02:43.8]} 16... Rb8 {[%clk
0:00:26.1]} 17. Rb3 {[%clk 0:02:26.7]} 17... Qa7 {[%clk 0:00:24.3]} 18. a5
{[%clk 0:02:12.9]} 18... O-O {[%clk 0:00:19.8]} 19. Qxh5 {[%clk 0:01:55.1]}
19... Nxe5 {[%clk 0:00:17.3]} 20. Rxb8 {[%clk 0:01:44]} 20... Qxb8 {[%clk
0:00:05.1]} 21. dxe5 {[%clk 0:01:44.4]} 21... Rd8 {[%clk 0:00:03.8]} 22. Qe2
{[%clk 0:01:41.7]} 1-0

[Event "*** Qualifier 2: Titled Tuesday 3|2 Blitz"]
[Site "Chess.com"]
[Date "2017.04.11"]
[Round "8"]
[White "Tolya2"]
[Black "FearNoEvil12"]
[Result "1-0"]
[WhiteElo "2309"]
[BlackElo "2081"]
[TimeControl "180+2"]
[EndTime "14:51:33 PDT"]
[Termination "Tolya2 won by checkmate"]

1. Nf3 {[%clk 0:03:02]} 1... b5 {[%clk 0:03:01.1]} 2. d4 {[%clk 0:03:01.5]} 2...
a6 {[%clk 0:03:01.5]} 3. Bf4 {[%clk 0:03:02.1]} 3... Bb7 {[%clk 0:03:02.8]} 4.
e3 {[%clk 0:03:03]} 4... Nf6 {[%clk 0:03:04.2]} 5. a4 {[%clk 0:03:03.2]} 5... b4
{[%clk 0:03:03.9]} 6. c4 {[%clk 0:03:03]} 6... bxc3 {[%clk 0:03:03.3]} 7. bxc3
{[%clk 0:03:03.3]} 7... e6 {[%clk 0:03:04.8]} 8. Nbd2 {[%clk 0:03:03.7]} 8... d6
{[%clk 0:03:06.2]} 9. Rb1 {[%clk 0:03:02.9]} 9... Qc8 {[%clk 0:03:03.9]} 10. Be2
{[%clk 0:03:01.5]} 10... Nbd7 {[%clk 0:03:05.2]} 11. O-O {[%clk 0:03:01.5]}
11... h6 {[%clk 0:03:04.9]} 12. h3 {[%clk 0:03:01.1]} 12... g5 {[%clk
0:03:04.7]} 13. Bh2 {[%clk 0:02:59]} 13... g4 {[%clk 0:03:05.8]} 14. hxg4 {[%clk
0:02:59.6]} 14... Nxg4 {[%clk 0:03:07.3]} 15. Bg3 {[%clk 0:03:00.1]} 15... Rg8
{[%clk 0:03:08.3]} 16. Qb3 {[%clk 0:02:59.2]} 16... Rb8 {[%clk 0:03:06.3]} 17.
Qc2 {[%clk 0:02:48.2]} 17... Nxe3 {[%clk 0:03:03]} 18. fxe3 {[%clk 0:02:45.8]}
18... Rxg3 {[%clk 0:03:02.5]} 19. Ne4 {[%clk 0:02:43.8]} 19... Rg4 {[%clk
0:02:47.2]} 20. Nfd2 {[%clk 0:02:38.2]} 20... Rg6 {[%clk 0:02:44.8]} 21. Bf3
{[%clk 0:02:36.9]} 21... Be7 {[%clk 0:02:37.3]} 22. Rf2 {[%clk 0:02:28.7]} 22...
Nf6 {[%clk 0:02:34.5]} 23. Rbf1 {[%clk 0:02:24.7]} 23... Nd5 {[%clk 0:02:20.2]}
24. Qd3 {[%clk 0:02:20.9]} 24... Kd7 {[%clk 0:02:18.8]} 25. Bh5 {[%clk
0:02:20.7]} 25... Rg7 {[%clk 0:02:03.1]} 26. Rxf7 {[%clk 0:02:17.3]} 26... Rxf7
{[%clk 0:02:02.9]} 27. Rxf7 {[%clk 0:02:17.9]} 27... Qh8 {[%clk 0:01:40.2]} 28.
c4 {[%clk 0:02:15.8]} 28... Nb4 {[%clk 0:01:38.5]} 29. Qb3 {[%clk 0:02:12]}
29... Bxe4 {[%clk 0:01:37.1]} 30. Nxe4 {[%clk 0:02:11.2]} 30... Nc6 {[%clk
0:01:23.3]} 31. Qd1 {[%clk 0:02:04.8]} 31... Rb2 {[%clk 0:01:15.8]} 32. Qg4
{[%clk 0:02:02.3]} 32... Qd8 {[%clk 0:01:05.9]} 33. d5 {[%clk 0:01:56.9]} 33...
Ne5 {[%clk 0:00:54.4]} 34. Qxe6+ {[%clk 0:01:56.9]} 34... Ke8 {[%clk 0:00:55.6]}
35. Rg7+ {[%clk 0:01:46.1]} 35... Kf8 {[%clk 0:00:55.8]} 36. Rg8# {[%clk
0:01:46.5]} 1-0

[Event "*** Qualifier 2: Titled Tuesday 3|2 Blitz"]
[Site "Chess.com"]
[Date "2017.04.11"]
[Round "8"]
[White "Gabix_94"]
[Black "Feegus"]
[Result "1-0"]
[WhiteElo "2529"]
[BlackElo "2374"]
[TimeControl "180+2"]
[EndTime "14:51:39 PDT"]
[Termination "Gabix_94 won by resignation"]

1. e4 {[%clk 0:03:02]} 1... e6 {[%clk 0:03:01.1]} 2. d4 {[%clk 0:03:02.9]} 2...
d5 {[%clk 0:03:02.3]} 3. Nc3 {[%clk 0:03:04]} 3... Nf6 {[%clk 0:03:02.6]} 4. Bg5
{[%clk 0:03:03.5]} 4... Be7 {[%clk 0:03:03.5]} 5. e5 {[%clk 0:02:59.4]} 5...
Nfd7 {[%clk 0:03:03.4]} 6. h4 {[%clk 0:02:59.3]} 6... O-O {[%clk 0:03:04.3]} 7.
Bd3 {[%clk 0:02:54]} 7... c5 {[%clk 0:03:02.2]} 8. Nh3 {[%clk 0:02:48.6]} 8...
f6 {[%clk 0:02:53.4]} 9. Nf4 {[%clk 0:02:34]} 9... Nxe5 {[%clk 0:01:57.5]} 10.
dxe5 {[%clk 0:02:27.9]} 10... fxe5 {[%clk 0:01:58.6]} 11. Qh5 {[%clk 0:02:12.2]}
11... e4 {[%clk 0:01:24.1]} 12. Nxe4 {[%clk 0:02:12.2]} 12... dxe4 {[%clk
0:01:01.9]} 13. Bxe4 {[%clk 0:02:11.6]} 13... Rf5 {[%clk 0:01:03]} 14. Bxf5
{[%clk 0:02:09.5]} 14... exf5 {[%clk 0:01:03.3]} 15. Rd1 {[%clk 0:02:09.4]}
15... Qf8 {[%clk 0:00:57.8]} 16. Qe2 {[%clk 0:01:56.1]} 16... Nc6 {[%clk
0:00:39.4]} 17. Bxe7 {[%clk 0:01:49.9]} 17... Nxe7 {[%clk 0:00:39.6]} 18. Rh3
{[%clk 0:01:47.6]} 18... Nc6 {[%clk 0:00:15.2]} 19. h5 {[%clk 0:01:42.4]} 19...
Nd4 {[%clk 0:00:16]} 20. Qc4+ {[%clk 0:01:37.6]} 20... Kh8 {[%clk 0:00:15.5]}
21. Ng6+ {[%clk 0:01:38.1]} 1-0